Cogmind - Beta 16 @@@ ROGUE MODE // 2025.10.22 @ 16:22:40 Player: shockman27 Result: Destroyed by Triborg with Siege Cannon Performance ------------- Evolutions (0) 0 Regions Visited (3) 600 Robots Destroyed (58) 290 Value Destroyed (955) 955 Prototype IDs (6) 120 Alien Tech Used (0) 0 Bonus (299) 299 TOTAL SCORE: 2264 Bonus ------- High Alert Combat Kills 16 Registered with UFD 300 Friendly Fire -17 Cogmind --------- Core Integrity 0/250 Matter 58/300 Energy 240/240 System Corruption 0% Temperature Cool (65) Movement Treading (240) Ox1 Location -9/Scraptown Parts ------- > --- POWER (1) -------- Nuclear Core > --- PROPULSION (2) --- Light Treads Light Treads > --- UTILITY (2) ------ Large Storage Unit Makeshift Light Armor Plating > --- WEAPON (2) ------- Advanced Assault Cannon Advanced Assault Cannon > --- INVENTORY (15) --- Light Treads Light Treads Advanced Sensor Array Hacking Suite Hacking Suite A0-MCA's Component Scanner Phase Cannon Battle Rifle Minigun Battle Cannon Grenade Launcher Grenade Launcher Falx Peak State ------------ > --- POWER ------------ Nuclear Core > --- PROPULSION ------- Light Treads Light Treads > --- UTILITY ---------- Large Storage Unit Makeshift Light Armor Plating > --- WEAPON ----------- Advanced Assault Cannon Advanced Assault Cannon > --- INVENTORY -------- Light Treads Light Treads Light Treads Advanced Sensor Array Hacking Suite Hacking Suite A0-MCA's Component Scanner Phase Cannon Battle Rifle Minigun Battle Cannon Grenade Launcher Grenade Launcher Falx [Rating: 22] Favorites ----------- Power Nuclear Core Engine Ion Engine Power Core Nuclear Core Propulsion Light Treads Treads Light Treads Wheel Compact Wheel Utility Large Storage Unit Device Seismic Detector Storage Large Storage Unit Protection Makeshift Light Armor Plating Weapon Grenade Launcher Energy Gun Medium Laser Ballistic Gun Light Assault Rifle Ballistic Cannon Light Cannon Launcher Grenade Launcher Special Weapon Mining Laser Slashing Weapon Falx Build | -11 -10 -10 -9 ------- Run | Yrd Mat Sub Scr Slots Evolved . | . . . . Power . | . . . . Propulsion . | . . . . Utility . | . . . . Weapon . | . . . . Parts Attached 29 | 7 11 4 7 Power 4 | 1 . 1 2 Engine 3 | 1 . 1 1 Core 1 | . . . 1 Reactor . | . . . . Propulsion 6 | 2 1 2 1 Treads 5 | 1 1 2 1 Leg . | . . . . Wheel 1 | 1 . . . Hover . | . . . . Flight . | . . . . Utility 5 | 2 2 . 1 Device 1 | 1 . . . Storage 3 | 1 2 . . Processor . | . . . . Hackware . | . . . . Protection 1 | . . . 1 Artifact . | . . . . Weapon 14 | 2 8 1 3 Energy Gun 1 | 1 . . . Energy Cannon . | . . . . Ballistic Gun 2 | 1 1 . . Ballistic Cannon 7 | . 4 1 2 Launcher 2 | . 2 . . Special Weapon 1 | . 1 . . Impact Weapon . | . . . . Slashing Weapon 1 | . . . 1 Piercing Weapon . | . . . . Special Melee Weapon . | . . . . Unidentified Prototypes . | . . . . Parts Lost 6 | . 1 4 1 Power 1 | . 1 . . Propulsion 3 | . . 2 1 Utility 1 | . . 1 . Weapon 1 | . . 1 . Highest Loss Streak 2 | . 1 2 1 To Critical Strikes . | . . . . Average Backups 13 | 4 12 14 13 Power . | . 1 . . Propulsion 3 | 3 5 3 2 Utility 2 | . 1 2 3 Weapon 6 | . 5 8 7 Tool/Special . | . . . . Unused Backups 15 | . 3 . 12 Power . | . . . . Propulsion 5 | . 3 . 2 Utility 4 | . . . 4 Weapon 6 | . . . 6 Tool/Special . | . . . . Average Slot Usage (%) 88 | . 95 85 85 Engine 5 | . 9 13 . Core 6 | . . . 13 Treads 26 | . 24 28 28 Wheel 1 | . 3 . . Device 4 | . 14 . . Storage 14 | . 14 14 14 Energy Gun 1 | . 3 . . Ballistic Gun 1 | . 3 . . Ballistic Cannon 7 | . 12 19 1 Launcher 11 | . 8 5 14 Slashing Weapon 6 | . . . 12 Peak Build Rating 22 | 7 8 9 22 Average Rating 11 | 5 7 8 14 On Entrance 5 | . 7 7 8 Avg Prop Armor Cover (%) 13 | 14 13 . . Naked Turns . | . . . . Heaviest Build 43 | 14 32 32 43 Greatest Support 40 | 20 40 40 40 Greatest Overweight (x) 1 | . 1 . 1 Average Overweight (x) . | . . . . Largest Inventory Capacity 15 | 8 15 15 15 Average Capacity 14 | 7 13 15 15 Most Carried 15 | 7 15 15 15 Average Carried 13 | 4 12 14 14 Final Capacity 15 | 8 15 15 15 Final Carried 15 | 7 15 15 13 Class Distribution -------------------- 100% | Mutant Dominant Class ---------------- Mutant | -10/Materials Mutant | -10/Subcaves Mutant | -9/Scraptown Resources | -11 -10 -10 -9 ----------- Run | Yrd Mat Sub Scr Matter Collected 1493 | 235 708 426 124 Remotely . | . . . . Salvage Created 1266 | 25 1034 112 95 Parts 112 | 5 97 7 3 Haulers Intercepted 1 | . 1 . . Recyclers Shooed 4 | . 4 . . Parts Field Recycled . | . . . . Retrieved Matter . | . . . . Parts Self-Destructed 19 | . . 18 1 Prevented . | . . . . Parts Restored . | . . . . Kills | -11 -10 -10 -9 ------- Run | Yrd Mat Sub Scr Combat Hostiles Destroyed 26 | . 19 6 1 Melee 1 | . 1 . . Guns 4 | . 4 . . Cannons 7 | . 2 4 1 AOE 14 | . 12 2 . Classes Destroyed 12 | 1 9 1 1 Worker 12 | . 12 . . Builder 6 | . 6 . . Tunneler 2 | 1 1 . . Hauler 1 | . 1 . . Recycler 4 | . 4 . . Mechanic 1 | . 1 . . Operator 3 | . 3 . . Watcher 3 | . 3 . . Swarmer 12 | . 12 . . Grunt 7 | . 7 . . Subdweller 6 | . . 6 . Elite 1 | . . . 1 Best Kill Streak 7 | 1 7 2 1 Combat Bots Only 3 | . 3 2 1 Max Kills in Single Turn 4 | 1 4 1 1 Gunslinging . | . . . . Exploded 3 | . 3 1 . Melee 1 | . 1 . . Uniques/NPCs Destroyed . | . . . . Combat | -11 -10 -10 -9 -------- Run | Yrd Mat Sub Scr Hostile Shots Fired 130 | . 60 36 34 Missed 41 | . 23 7 11 Hits 89 | . 37 29 23 Projectile 89 | . 37 29 23 Critical Strikes 2 | . . . 2 Damage Taken 1804 | . 372 614 818 Core 312 | . 45 64 203 Absorbed by Shields . | . . . . Core Remaining (%) 100 | 100 . . . Volleys Fired 177 | 7 96 49 25 Largest 2 | 2 2 2 2 Hottest 100 | 70 100 100 80 Shots Fired 315 | 14 189 77 35 Gun 56 | 14 42 . . Cannon 174 | . 102 52 20 Launcher 65 | . 44 6 15 Special 20 | . 1 19 . Kinetic 202 | 7 123 52 20 Thermal 48 | 7 22 19 . Explosive 65 | . 44 6 15 Electromagnetic . | . . . . Robot Hit Streak 16 | 3 11 16 4 Robot Miss Streak 7 | 4 7 2 1 Penetration Max . | . . . . Secondary Targets 1 | . 1 . . Max Gunslinging Chain 1 | . 1 . . Shots Hit Robots 128 | 5 83 35 5 Core Hits 82 | 2 61 11 8 Critical Kills . | . . . . Critical Parts Destroyed . | . . . . Critical Strikes 5 | . 1 3 1 Blast 5 | . 1 3 1 Melee Attacks 19 | . . . 19 Impact . | . . . . Slashing 19 | . . . 19 Piercing . | . . . . Sneak Attacks . | . . . . Combat Hostiles . | . . . . Follow-up Attacks . | . . . . Damage Inflicted 3317 | 66 2166 727 358 Guns 374 | 66 308 . . Cannons 1687 | . 910 622 155 Explosions 1238 | . 930 105 203 Melee . | . . . . Ramming 18 | . 18 . . Kinetic 1834 | 27 1030 622 155 Thermal 227 | 39 188 . . Explosive 1238 | . 930 105 203 Electromagnetic . | . . . . Impact . | . . . . Slashing . | . . . . Piercing . | . . . . Highest Corruption . | . . . . Average Corruption . | . . . . Corruption Purged . | . . . . Corruption Blocked . | . . . . Overload Shots . | . . . . Overflow Damage 71 | . 71 . . Projectiles 17 | . 17 . . Explosions 54 | . 54 . . Melee . | . . . . Knockbacks 12 | . 5 7 . Impact . | . . . . Kinetic 12 | . 5 7 . Secondary . | . . . . Self-Inflicted Damage 57 | . 57 . . Shots 3 | . 3 . . Rammed 3 | . 3 . . Targets Rammed 3 | . 3 . . Kicked . | . . . . Crushed . | . . . . Highest Temperature 195 | 60 110 . 195 Average Temperature 45 | 26 34 . 68 Received Heat Transfer 253 | . 54 60 139 Siege Activations . | . . . . Martial Activations . | . . . . Shielding Activations . | . . . . Robots Disrupted . | . . . . Combat Hostiles . | . . . . Robots Corrupted . | . . . . Combat Hostiles . | . . . . Parts Fried . | . . . . Impact Corruptions . | . . . . Robots Melted . | . . . . Combat Hostiles . | . . . . Parts Melted . | . . . . Heat Transferred 666 | 111 555 . . Parts Sabotaged . | . . . . Parts Stolen . | . . . . Parts Stripped . | . . . . Power Chain Reactions 1 | . 1 . . Alert | -11 -10 -10 -9 ------- Run | Yrd Mat Sub Scr Maximum Alert Level 2 | . 2 . . Low Security (%) 48 | 100 44 . . Level 1 21 | . 23 . . Level 2 30 | . 32 . . Level 3 . | . . . . Level 4 . | . . . . Level 5 . | . . . . High Security . | . . . . Max Security . | . . . . Peak Influence 511 | 5 511 . . Initial . | . . . . Average 234 | . 251 . . Influence Increases 1012 | 5 992 . 15 Destroy 0b10 Robot/C 380 | . 380 . . Destroy 0b10 Robot/NC 175 | 5 155 . 15 Destroy Leader 78 | . 78 . . Successful Hack 6 | . 6 . . Disable Machine 165 | . 165 . . Destroy Structure 208 | . 208 . . Influence Decreases 1012 | 5 499 493 15 Entered New Map 237 | . . 237 . Time Decay 720 | 5 489 216 10 Lost Part 55 | . 10 40 5 Squads Dispatched 3 | . 3 . . Investigation 1 | . 1 . . Extermination . | . . . . Reinforcement 2 | . 2 . . Assault . | . . . . Garrison . | . . . . Intercept . | . . . . Searches Triggered . | . . . . Construction Impeded . | . . . . Haulers Reinforced . | . . . . Active Scanning Responses . | . . . . Cargo Convoy Interrupts . | . . . . Stealth | -11 -10 -10 -9 --------- Run | Yrd Mat Sub Scr Distress Signals 2 | . 2 . . Communications Jammed . | . . . . Distress Signals . | . . . . Times Spotted 45 | . 30 7 8 Peak Tracking Total 12 | . 3 2 12 Tactical Retreats . | . . . . Traps | -11 -10 -10 -9 ------- Run | Yrd Mat Sub Scr Traps Triggered 1 | . 1 . . Indirectly . | . . . . Trap Hack Attempts . | . . . . Triggered . | . . . . Disarmed . | . . . . Reprogrammed . | . . . . Reused . | . . . . Traps Extracted . | . . . . Installed . | . . . . Triggered . | . . . . Machines | -11 -10 -10 -9 ---------- Run | Yrd Mat Sub Scr Machines Disabled 11 | . 11 . . Max in Single Turn 3 | . 3 . . Machines Repaired . | . . . . Machines Dismantled . | . . . . Machines Sabotaged . | . . . . Overloaded Fab Kills . | . . . . Hacking | -11 -10 -10 -9 --------- Run | Yrd Mat Sub Scr Machines Accessed 3 | . 3 . . Terminals 2 | . 2 . . Fabricators . | . . . . Repair Stations . | . . . . Recycling Units 1 | . 1 . . Scanalyzers . | . . . . Garrison Access . | . . . . Total Hacks 10 | . 10 . . Successful 4 | . 4 . . Failed 6 | . 6 . . Catastrophic . | . . . . Database Lockouts . | . . . . Manual 8 | . 8 . . Terminals 8 | . 8 . . Fabricators . | . . . . Repair Stations . | . . . . Recycling Units 2 | . 2 . . Scanalyzers . | . . . . Garrison Access . | . . . . Terminal Hacks . | . . . . Fabricator Hacks . | . . . . Repair Station Hacks . | . . . . Recycling Unit Hacks 2 | . 2 . . Process 1 | . 1 . . Retrieve Matter 1 | . 1 . . Scanalyzer . | . . . . Garrison Access Hacks . | . . . . Unauthorized Hacks 2 | . 2 . . Terminals 2 | . 2 . . Botnet 1 | . 1 . . Operators 1 | . 1 . . Fabricators . | . . . . Repair Stations . | . . . . Recycling Units . | . . . . Scanalyzers . | . . . . Garrison Access . | . . . . Data Cores Recovered 1 | . 1 . . Used 1 | . 1 . . Hacking Detections 3 | . 3 . . Full Trace Events 1 | . 1 . . Feedback Events . | . . . . Feedback Blocked . | . . . . Robot Schematics Acquired . | . . . . Robots Built . | . . . . Authchips . | . . . . Time . | . . . . Total Robot Build Rating . | . . . . Part Schematics Acquired . | . . . . Parts Built . | . . . . Authchips . | . . . . Time . | . . . . Total Part Build Rating . | . . . . Part Studies Acquired . | . . . . Parts Repaired . | . . . . Time . | . . . . Parts Recycled . | . . . . Recycled Matter 118 | . 118 . . Retrieved Matter 345 | . 345 . . Retrieved Components . | . . . . Parts Scanalyzed . | . . . . Part Schematics Acquired . | . . . . Parts Damaged . | . . . . Bothacking | -11 -10 -10 -9 ------------ Run | Yrd Mat Sub Scr Used RIF Installer . | . . . . Robots Hacked . | . . . . Non-combat . | . . . . Combat . | . . . . Robot Hacks Applied . | . . . . Relay Couplers Released . | . . . . Fabnet Peak Effective % . | . . . . Robots Rewired . | . . . . Allies Hacked . | . . . . Hacks Repelled . | . . . . Allies | -11 -10 -10 -9 -------- Run | Yrd Mat Sub Scr Total Allies . | . . . . Largest Group . | . . . . Highest-Rated Group . | . . . . Highest-Rated Ally . | . . . . Total Orders . | . . . . Ally Attacks . | . . . . Total Damage . | . . . . Kills . | . . . . Allies Corrupted . | . . . . Allies Melted . | . . . . Intel | -11 -10 -10 -9 ------- Run | Yrd Mat Sub Scr Active Infowar (turns) 1792 | 24 1730 38 . Seismic 1792 | 24 1730 38 . Robot Analysis Total . | . . . . Derelict Logs Recovered 2 | . . . 2 Drone Launches . | . . . . Drone Recoveries . | . . . . Exploration | -11 -10 -10 -9 ------------- Run | Yrd Mat Sub Scr Turns Passed 5470 | 125 1730 833 2782 Spaces Moved 3090 | 85 958 405 1642 Core 6 | 6 . . . Treads 2715 | 8 660 405 1642 Legs . | . . . . Wheels 369 | 71 298 . . Hover . | . . . . Flight . | . . . . Fastest Speed 50 | 50 100 160 160 Average Speed 154 | 102 145 160 161 Slowest Speed 240 | 160 160 160 240 Overloaded Moves . | . . . . Propulsion Burnouts . | . . . . Robots Hopped . | . . . . Potential Cave-ins 14 | . 2 2 10 Cave-ins Triggered . | . . . . Exploration Rate (%) 54 | 5 99 24 90 Regions Visited 3 Branch Regions 2 Pre-discovered Areas 1 | . . . 1 Known Exits Taken . | . . . . Unknown Exits Taken 3 | 1 1 1 . Scrap Searched 10 | . . 5 5 Spaces Dug 54 | . 13 18 23 Terrain Destroyed 439 | . 252 49 138 Melee 5 | . . . 5 Projectile 20 | . . 6 14 AOE 414 | . 252 43 119 Terrain Rammed . | . . . . Walls Destroyed . | . . . . Machines Disabled . | . . . . Actions | -11 -10 -10 -9 --------- Run | Yrd Mat Sub Scr Total 3401 | 107 1105 476 1713 Wait 21 | 2 12 7 . Move 3087 | 84 957 404 1642 Hop . | . . . . Pick Up 33 | 7 13 5 8 Fast Attach 8 | 7 . . 1 Attach 6 | . . 4 2 Detach 1 | . . . 1 Swap 26 | . 17 4 5 Drop 19 | . 7 3 9 Fire 177 | 7 96 49 25 Melee 19 | . . . 19 Ram . | . . . . Kick . | . . . . Crush 3 | . 3 . . Escape Stasis . | . . . . Rewire 1 | . . . 1 Trap . | . . . . Miscellaneous . | . . . . Route ------- -11/Scrapyard -10/Materials (discovered 5 exits: [*Mat x3] / [*Min] / [*Sub]) -10/Subcaves -9/Scraptown (discovered 1 exit: [*Fac]) History --------- Turn | Location | Event 24 | -11/Scrapyard | Discovered new exit (range 16) 126 | -11/Scrapyard | Entered Materials 172 | -10/Materials | Discovered new exit (range 12) 308 | -10/Materials | Build established: Mutant 327 | -10/Materials | Discovered new exit (range 15) 731 | -10/Materials | Discovered new exit (range 9) 841 | -10/Materials | Discovered new exit (range 15) 1834 | -10/Materials | Discovered new exit (range 9) 1856 | -10/Materials | Entered Subcaves 1857 | -10/Subcaves | Approached by a straggling Scientist 2004 | -10/Subcaves | Disturbed a concealed Subdweller 2302 | -10/Subcaves | A swath of the cavern ceiling suddenly collapsed 2332 | -10/Subcaves | Shifting Twisted Machinery released Sub. Power Source 2352 | -10/Subcaves | Shifting Twisted Machinery released Mak. Shrapnel Gun 2689 | -10/Subcaves | Entered Scraptown 2760 | -9/Scraptown | Learned location of Extension (-5) 3127 | -9/Scraptown | Visited TADAMA 3195 | -9/Scraptown | Visited Comm Corps 3305 | -9/Scraptown | Visited Red Mages 3396 | -9/Scraptown | Visited Assassins FH 3697 | -9/Scraptown | Scanned Subdweller tech in exchange for log data 3700 | -9/Scraptown | Learned Factory terminal intel 3702 | -9/Scraptown | Learned Research emergency access door positions 3723 | -9/Scraptown | Discovered new exit (range 11) 3887 | -9/Scraptown | Visited Shadow of the Wyrm 3926 | -9/Scraptown | Visited Awakened 4369 | -9/Scraptown | Visited Symbiants 4406 | -9/Scraptown | Visited UFD Registry 4409 | -9/Scraptown | Registered with UFD as "Protonkit" 4449 | -9/Scraptown | Visited Junk Repository 4533 | -9/Scraptown | Visited Botcube Research 4567 | -9/Scraptown | Visited LU-1G1's Boring Crew 4668 | -9/Scraptown | Delivered Scrap Shield to a Scientist 4829 | -9/Scraptown | Visited Infowarlord's Domain 4861 | -9/Scraptown | Visited Scrapoid Pod Storage 4892 | -9/Scraptown | Visited A0-MCA Data Center 4901 | -9/Scraptown | Given an A- rating by A0-MCA 4914 | -9/Scraptown | Found A0-MCA's Component Scanner 4936 | -9/Scraptown | Visited Science Guys 4984 | -9/Scraptown | Visited Chapter 10 5062 | -9/Scraptown | Visited Research Penetration Think Tank 5268 | -9/Scraptown | Attacked by Scraptown defenders 5454 | -9/Scraptown | Core integrity fell below 50% 5469 | -9/Scraptown | Core integrity fell below 20% 5471 | -9/Scraptown | Destroyed by Triborg with Siege Cannon Last Messages --------------- 05396_ Acquired Mak. Light Armor Plating. 05398_ The unstable cave ceiling collapses. 05407_ G-34 Mercenary suffers critical hit (Blast). 05407_ G-34 Mercenary destroyed. 05412_ The unstable cave ceiling collapses. 05445_ Acquired 1 matter. 05451_ Siege Slug penetrates Reinforced Barrier. 05453_ Penetrated by Siege Slug. 05455_ The unstable cave ceiling collapses. 05459_ Siege Slug penetrates Reinforced Barrier. 05459_ Lgt. Treads destroyed. 05463_ Siege Slug penetrates Reinforced Barrier. 05465_ 1X-4ZF(j): "Eat nuts!" 05465_ The unstable cave ceiling collapses. 05465_ Penetrated by Siege Slug. 05468_ Triborg exits siege mode. 05468_ The unstable cave ceiling collapses. 05468_ Critical hit (Burn: +50). 05471_ Triborg activates siege mode. 05471_ Penetrated by Siege Slug. Map ----- +----------------------------------------------------+ | ###### #"" "## "#???????????????????????? | | ?????###"" "##"""" #???????????????????????? | | ???????#"" "########???????????????????????? | | ???????#"" "#??????????????????????????????? | | ???????#"" "#??????????????????????????????? | | ########"" "###########????????????????????? | | """""""""" "## !!!!! #????????????????????? | | """""""""" #????????????????????? | | "## #????????????????????? | | "## #????????????????????? | | "## !!!!! #????????????????????? | | ###########????????????????????? | | #?????????????????????????????? | | """""" """""" ##?????????????????????????????? | | ###### ###### #??????????????????????????????? | | ?# ## #??????????????????????????????? | | ?# # # ## #??????????????????????????????? | | ?# # # ## #??????????????????????????????? | | ?# # # ## #????????????##?###???#???#????? | | ?# ####### ## ######???????? ###### ## # #??? | | ?# ## TT;;;;;;######### ## # #######?? | | ?# # """ # ##pTT # # #?? | | ?# # "#" # ## E g j ;# # ##% #?? | | ?# # """ # ## j x# %#???? | | ?# # # ## % % # #???? | | ?############ @ ; % ## #??? | | ????????????# ########;###%;## ## ##??? | | ????######### #####??#### ##### #???? | | ""##"""##"|"# """"#?????###???? # ###???? | | ""##"" ##" # "" "#????????????# ###?????? | | "#????????????? ##???????? | | " "#?????????????#####????????? | | / """"#??????????????????????????? | | |"##!!%##""|## ######??????????????????????????? | | ""##"""##"""####???????????????????????????????? | | #############??????????????????????????????????? | | ???????????????????????????????????????????????? | | ???????????????????????????????????????????????? | | ???????????????????????????????????????????????? | | ???????????????????????????????????????????????? | | ???????????????????????????????????????????????? | | ???????????????????????????????????????????????? | | ???????????????????????????????????????????????? | | ???????????????????????????????????????????????? | | ???????????????????????????????????????????????? | | ???????????????????????????????????????????????? | | ???????????????????????????????????????????????? | | ???????????????????????????????????????????????? | | ???????????????????????????????????????????????? | | ???????????????????????????????????????????????? | +----------------------------------------------------+ Best States ------------- Heat Dissipation 25 Energy Generation 14 Energy Capacity 265 Matter Stores 300 Matter Capacity 300 Sight Range 16 Terrain Scan Density 10 Armor Coverage 100 Evasion (%) 40 Recoil Reduction 2 Item Schematics ----------------- None Robot Schematics ------------------ None Fabricated ------------ Nothing Repaired ---------- Nothing Studied --------- None Alien Tech Used ----------------- None Achievements -------------- Civilization 2243 For Emergencies Only Challenges ------------ None Game ------ Seed FusionMultireflexPower Manual? 0 Play Time 00:27:05 Cumulative 160.8 hours Start 2025.10.22 @ 14:10:22 End 2025.10.22 @ 16:22:40 Sessions 2 Manual Loads 0 Difficulty Rogue Special Mode None Game No. 94 Rogue 90 Adventurer 4 Explorer 0 Win Type - Total 3 Types 2/0/0/1/0/0/0/0/0/0 Lore% 67 Gallery% 59 Achievement% 29 Wizard Run 0 Options --------- Layout 0 ASCII 0 Keyboard 1 Movement Vi Keybinds 0 Fullscreen 1 Font 24/Smallcaps Map View 76x50 Zoom Use 0% Tactical HUD 1 Map Filters NONE Filters NONE Steam 1 RUN: 0ba9cd11-bd48-4804-926a-8ac798e7c649